[Event "Titled Tuesday Blitz March 21 Early 2023"]
[White "Galchenko, Matvey"]
[Black "Alex_Sahakyan2006"]
[WhiteFideId "24175480"]
[WhiteElo "2404"]
[BlackElo "2616"]
[Result "1-0"]
[Round "08"]
[TimeControl "180+2"]
[Date "2023.03.21"]
[WhiteClock "0:00:08"]
[BlackClock "0:00:02"]

1. f4 {[%clk 0:02:59]}  d5 {[%clk 0:02:57]} 2. Nf3 {[%clk 0:03:00]}  Nh6 {[%clk 0:02:56]} 3. g3 {[%clk 0:03:00]}  g6 {[%clk 0:02:56]} 4. Bg2 {[%clk 0:03:00]}  Bg7 {[%clk 0:02:55]} 5. O-O {[%clk 0:03:01]}  O-O {[%clk 0:02:55]} 6. d3 {[%clk 0:03:02]}  d4 {[%clk 0:02:55]} 7. c3 {[%clk 0:03:02]}  c5 {[%clk 0:02:55]} 8. e4 {[%clk 0:03:02]}  dxe3 {[%clk 0:02:54]} 9. Bxe3 {[%clk 0:03:02]}  Qc7 {[%clk 0:02:51]} 10. Kh1 {[%clk 0:03:02]}  Rd8 {[%clk 0:02:47]} 11. Qe2 {[%clk 0:03:02]}  Bf5 {[%clk 0:02:46]} 12. Ne1 {[%clk 0:03:01]}  Bg4 {[%clk 0:02:43]} 13. Qf2 {[%clk 0:02:59]}  Na6 {[%clk 0:02:43]} 14. h3 {[%clk 0:02:58]}  Be6 {[%clk 0:02:42]} 15. g4 {[%clk 0:02:53]}  Bd5 {[%clk 0:02:39]} 16. Nf3 {[%clk 0:02:47]}  f5 {[%clk 0:02:31]} 17. g5 {[%clk 0:02:42]}  Nf7 {[%clk 0:02:31]} 18. Na3 {[%clk 0:02:34]}  e5 {[%clk 0:02:27]} 19. Nb5 {[%clk 0:02:16]}  Qb6 {[%clk 0:02:19]} 20. a4 {[%clk 0:02:14]}  e4 {[%clk 0:02:17]} 21. dxe4 {[%clk 0:02:04]}  Bxe4 {[%clk 0:02:18]} 22. Nd2 {[%clk 0:02:01]}  Bxg2+ {[%clk 0:02:06]} 23. Qxg2 {[%clk 0:02:01]}  Rac8 {[%clk 0:01:50]} 24. Rfe1 {[%clk 0:01:53]}  Nc7 {[%clk 0:01:42]} 25. Nc4 {[%clk 0:01:46]}  Qe6 {[%clk 0:01:41]} 26. Na5 {[%clk 0:01:45]}  Nd5 {[%clk 0:00:39]} 27. Qf3 {[%clk 0:01:27]}  b6 {[%clk 0:00:33]} 28. Nc4 {[%clk 0:01:12]}  Nxc3 {[%clk 0:00:31]} 29. bxc3 {[%clk 0:01:05]}  Qxc4 {[%clk 0:00:30]} 30. Nxa7 {[%clk 0:01:06]}  Rc7 {[%clk 0:00:18]} 31. Nb5 {[%clk 0:01:02]}  Re7 {[%clk 0:00:17]} 32. Bf2 {[%clk 0:00:59]}  Re4 {[%clk 0:00:16]} 33. Rxe4 {[%clk 0:00:55]}  fxe4 {[%clk 0:00:16]} 34. Qg4 {[%clk 0:00:55]}  Rd2 {[%clk 0:00:15]} 35. Be3 {[%clk 0:00:45]}  Re2 {[%clk 0:00:14]} 36. Bg1 {[%clk 0:00:39]}  e3 {[%clk 0:00:10]} 37. Qf3 {[%clk 0:00:39]}  Qd3 {[%clk 0:00:09]} 38. Nc7 {[%clk 0:00:29]}  Nd6 {[%clk 0:00:08]} 39. Qa8+ {[%clk 0:00:25]}  Bf8 {[%clk 0:00:08]} 40. Qd5+ {[%clk 0:00:11]}  Qxd5+ {[%clk 0:00:06]} 41. Nxd5 {[%clk 0:00:12]}  Nf5 {[%clk 0:00:06]} 42. Bh2 {[%clk 0:00:11]}  Rd2 {[%clk 0:00:07]} 43. Nf6+ {[%clk 0:00:10]}  Kf7 {[%clk 0:00:06]} 44. Ne4 {[%clk 0:00:11]}  Rc2 {[%clk 0:00:04]} 45. Re1 {[%clk 0:00:11]}  c4 {[%clk 0:00:03]} 46. Bg1 {[%clk 0:00:10]}  Bc5 {[%clk 0:00:04]} 47. Bh2 {[%clk 0:00:08]}  e2 {[%clk 0:00:04]} 48. Kg2 {[%clk 0:00:08]}  Ne3+ {[%clk 0:00:03]} 49. Kf3 {[%clk 0:00:09]}  Nd5 {[%clk 0:00:02]} 50. Rxe2 {[%clk 0:00:08]} 1-0


[Site "https://www.chess.com"]

[Event "Titled Tuesday Blitz March 21 Early 2023"]
[White "Lorparizangeneh, Shahin"]
[Black "Pinheiro, Iung Alicio de O."]
[WhiteFideId "12521604"]
[BlackFideId "2104350"]
[WhiteElo "2526"]
[BlackElo "2283"]
[Result "1-0"]
[Round "08"]
[TimeControl "180+2"]
[Date "2023.03.21"]
[WhiteClock "0:00:53"]
[BlackClock "0:00:02"]

1. e4 {[%clk 0:02:39]}  c5 {[%clk 0:02:18]} 2. Nf3 {[%clk 0:02:39]}  Nc6 {[%clk 0:02:14]} 3. Bb5 {[%clk 0:02:39]}  e6 {[%clk 0:02:12]} 4. Bxc6 {[%clk 0:02:39]}  bxc6 {[%clk 0:02:11]} 5. d3 {[%clk 0:02:40]}  Qc7 {[%clk 0:02:02]} 6. Nbd2 {[%clk 0:02:40]}  e5 {[%clk 0:01:57]} 7. Nc4 {[%clk 0:02:36]}  d6 {[%clk 0:01:57]} 8. O-O {[%clk 0:02:33]}  Ne7 {[%clk 0:01:54]} 9. Ne1 {[%clk 0:02:27]}  Ng6 {[%clk 0:01:53]} 10. g3 {[%clk 0:02:27]}  Bh3 {[%clk 0:01:51]} 11. Ng2 {[%clk 0:02:27]}  Be7 {[%clk 0:01:46]} 12. Qh5 {[%clk 0:02:22]}  Qd7 {[%clk 0:01:42]} 13. Nce3 {[%clk 0:02:20]}  Be6 {[%clk 0:01:35]} 14. f4 {[%clk 0:02:15]}  exf4 {[%clk 0:01:27]} 15. gxf4 {[%clk 0:02:16]}  Bh3 {[%clk 0:01:20]} 16. Rf3 {[%clk 0:01:48]}  Bxg2 {[%clk 0:01:13]} 17. Nxg2 {[%clk 0:01:49]}  O-O-O {[%clk 0:01:06]} 18. Bd2 {[%clk 0:01:44]}  Bf6 {[%clk 0:01:01]} 19. Rb1 {[%clk 0:01:42]}  Qe7 {[%clk 0:00:31]} 20. b4 {[%clk 0:01:34]}  c4 {[%clk 0:00:26]} 21. Qa5 {[%clk 0:01:27]}  Bd4+ {[%clk 0:00:19]} 22. Kh1 {[%clk 0:01:27]}  Bb6 {[%clk 0:00:19]} 23. Qa6+ {[%clk 0:01:27]}  Kb8 {[%clk 0:00:17]} 24. Qxc4 {[%clk 0:01:27]}  d5 {[%clk 0:00:16]} 25. exd5 {[%clk 0:01:18]}  cxd5 {[%clk 0:00:17]} 26. Qc3 {[%clk 0:01:00]}  Qe2 {[%clk 0:00:16]} 27. d4 {[%clk 0:00:56]}  Rhe8 {[%clk 0:00:12]} 28. Qd3 {[%clk 0:00:54]}  Bxd4 {[%clk 0:00:11]} 29. f5 {[%clk 0:00:50]}  Qxd3 {[%clk 0:00:10]} 30. Rxd3 {[%clk 0:00:50]}  Ne5 {[%clk 0:00:04]} 31. Rxd4 {[%clk 0:00:50]}  Nc4 {[%clk 0:00:03]} 32. Bf4+ {[%clk 0:00:50]}  Ka8 {[%clk 0:00:04]} 33. Rbd1 {[%clk 0:00:51]}  Re2 {[%clk 0:00:03]} 34. Rxd5 {[%clk 0:00:50]}  Rxd5 {[%clk 0:00:02]} 35. Rxd5 {[%clk 0:00:51]}  Rxc2 {[%clk 0:00:02]} 36. h4 {[%clk 0:00:51]}  Kb7 {[%clk 0:00:02]} 37. Rd7+ {[%clk 0:00:51]}  Kc6 {[%clk 0:00:02]} 38. Rxf7 {[%clk 0:00:52]}  Kd5 {[%clk 0:00:03]} 39. Rxg7 {[%clk 0:00:52]}  Ke4 {[%clk 0:00:03]} 40. f6 {[%clk 0:00:52]}  Kf3 {[%clk 0:00:02]} 41. f7 {[%clk 0:00:53]} 1-0


[Site "https://www.chess.com"]

[Event "Titled Tuesday Blitz March 21 Early 2023"]
[White "Gadimbayli, Abdulla"]
[Black "Kim, Sergey"]
[WhiteFideId "13404938"]
[BlackFideId "13700570"]
[WhiteElo "2390"]
[BlackElo "2598"]
[Result "0-1"]
[Round "08"]
[TimeControl "180+2"]
[Date "2023.03.21"]
[WhiteClock "0:01:37"]
[BlackClock "0:00:56"]

1. Nf3 {[%clk 0:03:00]}  Nf6 {[%clk 0:02:59]} 2. g3 {[%clk 0:02:59]}  g6 {[%clk 0:02:59]} 3. Bg2 {[%clk 0:03:00]}  Bg7 {[%clk 0:02:59]} 4. O-O {[%clk 0:03:01]}  d6 {[%clk 0:03:00]} 5. d4 {[%clk 0:03:02]}  O-O {[%clk 0:03:00]} 6. Nc3 {[%clk 0:03:02]}  c6 {[%clk 0:02:58]} 7. e4 {[%clk 0:03:03]}  Qc7 {[%clk 0:02:58]} 8. Re1 {[%clk 0:03:03]}  e5 {[%clk 0:02:58]} 9. Bg5 {[%clk 0:03:02]}  a5 {[%clk 0:02:54]} 10. Qd2 {[%clk 0:03:00]}  a4 {[%clk 0:02:51]} 11. a3 {[%clk 0:02:58]}  Re8 {[%clk 0:02:48]} 12. Rad1 {[%clk 0:02:57]}  Nbd7 {[%clk 0:02:47]} 13. Bh6 {[%clk 0:02:57]}  Qb6 {[%clk 0:02:43]} 14. Bxg7 {[%clk 0:02:56]}  Kxg7 {[%clk 0:02:42]} 15. Rc1 {[%clk 0:02:41]}  Qxb2 {[%clk 0:01:54]} 16. Rb1 {[%clk 0:02:41]}  Qxa3 {[%clk 0:01:54]} 17. Nb5 {[%clk 0:02:41]}  cxb5 {[%clk 0:01:52]} 18. Ra1 {[%clk 0:02:41]}  Nxe4 {[%clk 0:01:50]} 19. Qe2 {[%clk 0:02:32]}  Nc3 {[%clk 0:01:39]} 20. Qd2 {[%clk 0:02:27]}  Qb4 {[%clk 0:01:36]} 21. dxe5 {[%clk 0:02:24]}  Nxe5 {[%clk 0:01:27]} 22. Nd4 {[%clk 0:02:24]}  Bd7 {[%clk 0:01:21]} 23. Qf4 {[%clk 0:02:23]}  Kg8 {[%clk 0:01:13]} 24. h4 {[%clk 0:02:23]}  h5 {[%clk 0:01:05]} 25. Re3 {[%clk 0:02:15]}  Rac8 {[%clk 0:01:04]} 26. Rae1 {[%clk 0:02:15]}  Rc4 {[%clk 0:01:03]} 27. Rxc3 {[%clk 0:01:37]}  Qxc3 {[%clk 0:01:00]} 28. Re4 {[%clk 0:01:37]}  a3 {[%clk 0:00:56]} 0-1


[Site "https://www.chess.com"]

[Event "Titled Tuesday Blitz March 21 Early 2023"]
[White "Diaz Rosas, Julio Cesar"]
[Black "Hernandez Gonzalez, William"]
[WhiteFideId "5105099"]
[BlackFideId "3509915"]
[WhiteElo "2270"]
[BlackElo "2374"]
[Result "0-1"]
[Round "08"]
[TimeControl "180+2"]
[Date "2023.03.21"]
[WhiteClock "0:00:03"]
[BlackClock "0:00:14"]

1. e4 {[%clk 0:02:55]}  c5 {[%clk 0:02:59]} 2. Nf3 {[%clk 0:02:53]}  Nc6 {[%clk 0:02:59]} 3. d4 {[%clk 0:02:53]}  cxd4 {[%clk 0:03:00]} 4. Nxd4 {[%clk 0:02:54]}  e5 {[%clk 0:03:00]} 5. Nb5 {[%clk 0:02:53]}  d6 {[%clk 0:03:00]} 6. c4 {[%clk 0:02:52]}  Be6 {[%clk 0:02:58]} 7. N1c3 {[%clk 0:02:50]}  a6 {[%clk 0:02:56]} 8. Na3 {[%clk 0:02:47]}  Rc8 {[%clk 0:02:57]} 9. Be2 {[%clk 0:02:46]}  g6 {[%clk 0:02:56]} 10. Nc2 {[%clk 0:02:42]}  Bg7 {[%clk 0:02:56]} 11. O-O {[%clk 0:02:41]}  Nd4 {[%clk 0:02:53]} 12. Nxd4 {[%clk 0:02:32]}  exd4 {[%clk 0:02:54]} 13. Nd5 {[%clk 0:02:32]}  Bxd5 {[%clk 0:02:52]} 14. exd5 {[%clk 0:02:31]}  Ne7 {[%clk 0:02:47]} 15. Bd3 {[%clk 0:02:27]}  O-O {[%clk 0:02:46]} 16. Re1 {[%clk 0:02:23]}  Re8 {[%clk 0:02:44]} 17. Bg5 {[%clk 0:02:16]}  Qd7 {[%clk 0:02:44]} 18. Qd2 {[%clk 0:01:54]}  Nf5 {[%clk 0:02:25]} 19. h3 {[%clk 0:01:48]}  b5 {[%clk 0:01:51]} 20. b3 {[%clk 0:01:29]}  bxc4 {[%clk 0:01:45]} 21. Bxc4 {[%clk 0:01:26]}  Qb7 {[%clk 0:01:35]} 22. g4 {[%clk 0:01:17]}  Ne7 {[%clk 0:01:24]} 23. Bxe7 {[%clk 0:01:15]}  Rxe7 {[%clk 0:01:24]} 24. Rxe7 {[%clk 0:01:13]}  Qxe7 {[%clk 0:01:25]} 25. Bxa6 {[%clk 0:01:13]}  Rc3 {[%clk 0:01:24]} 26. Re1 {[%clk 0:01:08]}  Qd8 {[%clk 0:01:20]} 27. Bb5 {[%clk 0:00:54]}  Be5 {[%clk 0:01:19]} 28. Bd3 {[%clk 0:00:41]}  Qh4 {[%clk 0:01:17]} 29. Kg2 {[%clk 0:00:38]}  h5 {[%clk 0:01:17]} 30. Re4 {[%clk 0:00:32]}  hxg4 {[%clk 0:01:14]} 31. Rxg4 {[%clk 0:00:33]}  Qe7 {[%clk 0:01:06]} 32. Qe2 {[%clk 0:00:28]}  Qb7 {[%clk 0:01:01]} 33. Qe4 {[%clk 0:00:24]}  Qe7 {[%clk 0:00:48]} 34. f4 {[%clk 0:00:20]}  Bf6 {[%clk 0:00:48]} 35. f5 {[%clk 0:00:18]}  Qxe4+ {[%clk 0:00:45]} 36. Bxe4 {[%clk 0:00:19]}  d3 {[%clk 0:00:45]} 37. Bxd3 {[%clk 0:00:15]}  Rxd3 {[%clk 0:00:44]} 38. fxg6 {[%clk 0:00:16]}  Rd2+ {[%clk 0:00:43]} 39. Kf3 {[%clk 0:00:16]}  Rxa2 {[%clk 0:00:43]} 40. gxf7+ {[%clk 0:00:16]}  Kxf7 {[%clk 0:00:44]} 41. Rb4 {[%clk 0:00:15]}  Rd2 {[%clk 0:00:41]} 42. Rb5 {[%clk 0:00:14]}  Kg6 {[%clk 0:00:40]} 43. Ke4 {[%clk 0:00:13]}  Rd4+ {[%clk 0:00:39]} 44. Ke3 {[%clk 0:00:13]}  Rh4 {[%clk 0:00:39]} 45. b4 {[%clk 0:00:13]}  Rxh3+ {[%clk 0:00:38]} 46. Ke4 {[%clk 0:00:13]}  Rh4+ {[%clk 0:00:38]} 47. Ke3 {[%clk 0:00:14]}  Kf5 {[%clk 0:00:38]} 48. Rb8 {[%clk 0:00:13]}  Bc3 {[%clk 0:00:35]} 49. b5 {[%clk 0:00:12]}  Ke5 {[%clk 0:00:33]} 50. b6 {[%clk 0:00:12]}  Rb4 {[%clk 0:00:32]} 51. b7 {[%clk 0:00:11]}  Kxd5 {[%clk 0:00:31]} 52. Ke2 {[%clk 0:00:11]}  Bd4 {[%clk 0:00:28]} 53. Kd3 {[%clk 0:00:09]}  Ba7 {[%clk 0:00:28]} 54. Rh8 {[%clk 0:00:09]}  Rxb7 {[%clk 0:00:27]} 55. Rh5+ {[%clk 0:00:09]}  Kc6 {[%clk 0:00:28]} 56. Kc4 {[%clk 0:00:10]}  Bc5 {[%clk 0:00:28]} 57. Rh8 {[%clk 0:00:09]}  Rb4+ {[%clk 0:00:28]} 58. Kd3 {[%clk 0:00:10]}  d5 {[%clk 0:00:26]} 59. Rc8+ {[%clk 0:00:08]}  Kd6 {[%clk 0:00:26]} 60. Rd8+ {[%clk 0:00:08]}  Ke6 {[%clk 0:00:26]} 61. Re8+ {[%clk 0:00:08]}  Be7 {[%clk 0:00:27]} 62. Ra8 {[%clk 0:00:08]}  Rb3+ {[%clk 0:00:25]} 63. Kc2 {[%clk 0:00:07]}  Ra3 {[%clk 0:00:25]} 64. Re8 {[%clk 0:00:07]}  Ra7 {[%clk 0:00:23]} 65. Kd3 {[%clk 0:00:06]}  Ke5 {[%clk 0:00:23]} 66. Rb8 {[%clk 0:00:06]}  Ra3+ {[%clk 0:00:23]} 67. Kc2 {[%clk 0:00:06]}  Kd4 {[%clk 0:00:22]} 68. Re8 {[%clk 0:00:06]}  Bc5 {[%clk 0:00:21]} 69. Rh8 {[%clk 0:00:05]}  Re3 {[%clk 0:00:22]} 70. Kd2 {[%clk 0:00:05]}  Re4 {[%clk 0:00:18]} 71. Kc2 {[%clk 0:00:05]}  Kc4 {[%clk 0:00:17]} 72. Kd2 {[%clk 0:00:05]}  Rf4 {[%clk 0:00:17]} 73. Rc8 {[%clk 0:00:04]}  Rf2+ {[%clk 0:00:17]} 74. Ke1 {[%clk 0:00:03]}  Ra2 {[%clk 0:00:16]} 75. Kd1 {[%clk 0:00:04]}  Kd3 {[%clk 0:00:15]} 76. Kc1 {[%clk 0:00:04]}  Bd4 {[%clk 0:00:14]} 77. Rb8 {[%clk 0:00:01]}  Ra1+ {[%clk 0:00:14]} 78. Rb1 {[%clk 0:00:02]}  Rxb1+ {[%clk 0:00:14]} 79. Kxb1 {[%clk 0:00:03]}  Be3 {[%clk 0:00:14]} 0-1


[Site "https://www.chess.com"]

[Event "Titled Tuesday Blitz March 21 Early 2023"]
[White "Basso, Pier Luigi"]
[Black "Ingebretsen, Jens E"]
[WhiteFideId "866970"]
[BlackFideId "1522965"]
[WhiteElo "2438"]
[BlackElo "2213"]
[Result "0-1"]
[Round "08"]
[TimeControl "180+2"]
[Date "2023.03.21"]
[WhiteClock "0:01:35"]
[BlackClock "0:00:39"]

1. d4 {[%clk 0:03:00]}  Nf6 {[%clk 0:02:59]} 2. Nf3 {[%clk 0:03:00]}  e6 {[%clk 0:02:59]} 3. Bg5 {[%clk 0:03:00]}  Be7 {[%clk 0:02:59]} 4. Nbd2 {[%clk 0:03:00]}  O-O {[%clk 0:02:59]} 5. e4 {[%clk 0:02:59]}  d5 {[%clk 0:02:52]} 6. e5 {[%clk 0:02:49]}  Nfd7 {[%clk 0:02:52]} 7. h4 {[%clk 0:02:43]}  b6 {[%clk 0:02:50]} 8. Bd3 {[%clk 0:02:43]}  Ba6 {[%clk 0:02:49]} 9. Bxa6 {[%clk 0:02:39]}  Nxa6 {[%clk 0:02:48]} 10. Qe2 {[%clk 0:02:40]}  Nb4 {[%clk 0:02:44]} 11. Nf1 {[%clk 0:02:35]}  c5 {[%clk 0:02:43]} 12. c3 {[%clk 0:02:35]}  Nc6 {[%clk 0:02:37]} 13. Ng3 {[%clk 0:02:34]}  cxd4 {[%clk 0:02:29]} 14. cxd4 {[%clk 0:02:32]}  Rc8 {[%clk 0:02:29]} 15. a3 {[%clk 0:02:31]}  h6 {[%clk 0:02:07]} 16. Be3 {[%clk 0:02:29]}  f5 {[%clk 0:02:04]} 17. exf6 {[%clk 0:02:29]}  Bxf6 {[%clk 0:02:01]} 18. Rd1 {[%clk 0:02:27]}  e5 {[%clk 0:02:00]} 19. dxe5 {[%clk 0:02:26]}  Ndxe5 {[%clk 0:02:01]} 20. Nxe5 {[%clk 0:02:26]}  Nxe5 {[%clk 0:02:01]} 21. Nf5 {[%clk 0:02:20]}  Nc4 {[%clk 0:01:58]} 22. Qg4 {[%clk 0:02:13]}  Nxe3 {[%clk 0:01:51]} 23. fxe3 {[%clk 0:02:12]}  Kh8 {[%clk 0:01:39]} 24. O-O {[%clk 0:02:11]}  Bxb2 {[%clk 0:01:32]} 25. e4 {[%clk 0:02:05]}  Qf6 {[%clk 0:01:10]} 26. exd5 {[%clk 0:01:58]}  Rcd8 {[%clk 0:00:55]} 27. d6 {[%clk 0:01:55]}  Bxa3 {[%clk 0:00:51]} 28. Ne7 {[%clk 0:01:53]}  Bc5+ {[%clk 0:00:43]} 29. Kh2 {[%clk 0:01:37]}  Bxd6+ {[%clk 0:00:40]} 30. Rxd6 {[%clk 0:01:35]}  Qxd6+ {[%clk 0:00:39]} 0-1


[Site "https://www.chess.com"]

[Event "Titled Tuesday Blitz March 21 Early 2023"]
[White "Berezin, Viktor"]
[Black "Liyanage, Ranindu Dilshan"]
[WhiteFideId "14107872"]
[BlackFideId "9915834"]
[WhiteElo "2310"]
[BlackElo "2199"]
[Result "0-1"]
[Round "08"]
[TimeControl "180+2"]
[Date "2023.03.21"]
[WhiteClock "0:00:01"]
[BlackClock "0:00:25"]

1. d4 {[%clk 0:02:56]}  Nf6 {[%clk 0:02:59]} 2. c4 {[%clk 0:02:54]}  e6 {[%clk 0:02:59]} 3. Nf3 {[%clk 0:02:54]}  d5 {[%clk 0:02:58]} 4. g3 {[%clk 0:02:55]}  dxc4 {[%clk 0:02:58]} 5. Bg2 {[%clk 0:02:55]}  a6 {[%clk 0:02:58]} 6. O-O {[%clk 0:02:53]}  Nc6 {[%clk 0:02:59]} 7. a4 {[%clk 0:02:53]}  Rb8 {[%clk 0:02:58]} 8. e3 {[%clk 0:02:50]}  b5 {[%clk 0:02:58]} 9. b3 {[%clk 0:02:46]}  cxb3 {[%clk 0:02:56]} 10. Qxb3 {[%clk 0:02:47]}  Bd7 {[%clk 0:02:56]} 11. axb5 {[%clk 0:02:46]}  axb5 {[%clk 0:02:57]} 12. Bb2 {[%clk 0:02:31]}  Bd6 {[%clk 0:02:55]} 13. Rc1 {[%clk 0:02:25]}  O-O {[%clk 0:02:50]} 14. Ne5 {[%clk 0:02:10]}  Nb4 {[%clk 0:02:48]} 15. Nxd7 {[%clk 0:01:43]}  Qxd7 {[%clk 0:02:21]} 16. Nd2 {[%clk 0:01:41]}  Rfc8 {[%clk 0:02:15]} 17. e4 {[%clk 0:01:29]}  Be7 {[%clk 0:02:12]} 18. e5 {[%clk 0:01:29]}  Nfd5 {[%clk 0:02:08]} 19. Ne4 {[%clk 0:01:29]}  Nc6 {[%clk 0:02:02]} 20. Nc5 {[%clk 0:01:22]}  Bxc5 {[%clk 0:02:01]} 21. Rxc5 {[%clk 0:01:23]}  Nce7 {[%clk 0:02:01]} 22. Ra7 {[%clk 0:01:19]}  h6 {[%clk 0:01:50]} 23. h4 {[%clk 0:01:18]}  Rb6 {[%clk 0:01:43]} 24. Be4 {[%clk 0:01:05]}  Rcb8 {[%clk 0:01:41]} 25. Qc2 {[%clk 0:00:39]}  Rc6 {[%clk 0:01:38]} 26. Rxc6 {[%clk 0:00:31]}  Nxc6 {[%clk 0:01:39]} 27. Ra1 {[%clk 0:00:25]}  Nce7 {[%clk 0:01:34]} 28. Qc5 {[%clk 0:00:24]}  b4 {[%clk 0:01:32]} 29. Kg2 {[%clk 0:00:17]}  g6 {[%clk 0:01:27]} 30. h5 {[%clk 0:00:17]}  g5 {[%clk 0:01:22]} 31. Rc1 {[%clk 0:00:15]}  Qb5 {[%clk 0:01:14]} 32. Qa7 {[%clk 0:00:14]}  Rd8 {[%clk 0:01:03]} 33. Bf3 {[%clk 0:00:14]}  Qd3 {[%clk 0:00:56]} 34. Qc5 {[%clk 0:00:11]}  Nf5 {[%clk 0:00:42]} 35. Kg1 {[%clk 0:00:05]}  Qxf3 {[%clk 0:00:41]} 36. Rf1 {[%clk 0:00:04]}  Nh4 {[%clk 0:00:25]} 37. gxh4 {[%clk 0:00:04]}  Nf4 {[%clk 0:00:25]} 38. Qc6 {[%clk 0:00:01]}  Qxc6 {[%clk 0:00:25]} 0-1


[Site "https://www.chess.com"]

[Event "Titled Tuesday Blitz March 21 Early 2023"]
[White "benny_aizenberg"]
[Black "Manukyan, Sargis A."]
[BlackFideId "13303970"]
[WhiteElo "2571"]
[BlackElo "2187"]
[Result "1-0"]
[Round "08"]
[TimeControl "180+2"]
[Date "2023.03.21"]
[WhiteClock "0:00:23"]
[BlackClock "0:00:55"]

1. e4 {[%clk 0:03:00]}  c5 {[%clk 0:02:59]} 2. d4 {[%clk 0:03:01]}  cxd4 {[%clk 0:02:58]} 3. c3 {[%clk 0:03:01]}  d6 {[%clk 0:02:59]} 4. cxd4 {[%clk 0:03:00]}  Nf6 {[%clk 0:03:00]} 5. Nc3 {[%clk 0:02:59]}  e6 {[%clk 0:03:00]} 6. Nf3 {[%clk 0:02:57]}  Be7 {[%clk 0:03:01]} 7. Bd3 {[%clk 0:02:57]}  O-O {[%clk 0:03:01]} 8. O-O {[%clk 0:02:57]}  Nbd7 {[%clk 0:03:02]} 9. h3 {[%clk 0:02:55]}  e5 {[%clk 0:03:02]} 10. Bg5 {[%clk 0:02:51]}  h6 {[%clk 0:03:02]} 11. Bh4 {[%clk 0:02:51]}  a6 {[%clk 0:02:59]} 12. Bg3 {[%clk 0:02:51]}  exd4 {[%clk 0:02:58]} 13. Nxd4 {[%clk 0:02:51]}  Ne5 {[%clk 0:02:59]} 14. Be2 {[%clk 0:02:46]}  Bd7 {[%clk 0:02:57]} 15. f4 {[%clk 0:02:38]}  Nc6 {[%clk 0:02:54]} 16. e5 {[%clk 0:02:38]}  dxe5 {[%clk 0:02:50]} 17. fxe5 {[%clk 0:02:38]}  Qb6 {[%clk 0:02:48]} 18. exf6 {[%clk 0:02:31]}  Bxf6 {[%clk 0:02:47]} 19. Rxf6 {[%clk 0:02:27]}  gxf6 {[%clk 0:02:46]} 20. Bf2 {[%clk 0:02:27]}  Qxb2 {[%clk 0:02:42]} 21. Nd5 {[%clk 0:02:24]}  Kg7 {[%clk 0:02:34]} 22. Nxc6 {[%clk 0:02:20]}  Bxc6 {[%clk 0:02:31]} 23. Bd4 {[%clk 0:02:20]}  Qa3 {[%clk 0:02:25]} 24. Nxf6 {[%clk 0:02:19]}  Rad8 {[%clk 0:02:17]} 25. Nd7+ {[%clk 0:01:56]}  Kg8 {[%clk 0:02:05]} 26. Nxf8 {[%clk 0:01:39]}  Qg3 {[%clk 0:02:04]} 27. Bf1 {[%clk 0:01:16]}  Qf4 {[%clk 0:01:46]} 28. Bc5 {[%clk 0:00:31]}  Rxd1 {[%clk 0:01:43]} 29. Rxd1 {[%clk 0:00:32]}  Qe5 {[%clk 0:01:38]} 30. Bd6 {[%clk 0:00:32]}  Qe3+ {[%clk 0:01:37]} 31. Kh2 {[%clk 0:00:31]}  Ba4 {[%clk 0:01:33]} 32. Rd3 {[%clk 0:00:29]}  Qe1 {[%clk 0:01:20]} 33. Rg3+ {[%clk 0:00:25]}  Kh8 {[%clk 0:01:21]} 34. Bd3 {[%clk 0:00:24]}  Bc6 {[%clk 0:01:14]} 35. Bh7 {[%clk 0:00:23]}  Qxg3+ {[%clk 0:00:59]} 36. Kxg3 {[%clk 0:00:21]}  Kg7 {[%clk 0:01:00]} 37. Kf4 {[%clk 0:00:21]}  Bxg2 {[%clk 0:00:59]} 38. h4 {[%clk 0:00:21]}  Bd5 {[%clk 0:00:58]} 39. Be4 {[%clk 0:00:20]}  Bxa2 {[%clk 0:00:58]} 40. Nd7 {[%clk 0:00:20]}  b5 {[%clk 0:00:57]} 41. Bf8+ {[%clk 0:00:20]}  Kg8 {[%clk 0:00:57]} 42. Bxh6 {[%clk 0:00:20]}  b4 {[%clk 0:00:55]} 43. Nf6+ {[%clk 0:00:20]}  Kh8 {[%clk 0:00:55]} 44. Bf8 {[%clk 0:00:21]}  b3 {[%clk 0:00:54]} 45. h5 {[%clk 0:00:21]}  b2 {[%clk 0:00:55]} 46. h6 {[%clk 0:00:22]}  b1=Q {[%clk 0:00:55]} 47. Bg7# {[%clk 0:00:23]} 1-0


[Site "https://www.chess.com"]